fUSD/lending_fUSD_20250814
["ID","MTS","AMOUNT","RATE_DAILY","PERIOD"]
[379136907,1755155440476,-386.20030069,0.00040423,120]
[379136908,1755155440485,-1087.58078125,0.00040423,28]
[379136909,1755155440495,-153.74564375,0.00040423,15]
[379136910,1755155440505,-5004.29768276,0.00040423,15]
[379136911,1755155440515,-386.20030069,0.00040423,120]
[379136912,1755155440525,-150.0,0.00040438,2]
[379136913,1755155440534,-150.0,0.0004047,2]
[379136914,1755155440543,-5500.0,0.000405,10]
[379136915,1755155440553,-156.45,0.00040512,2]
[379136916,1755155440563,-156.45,0.00040512,2]
[379136917,1755155440572,-156.45,0.00040512,2]
[379136918,1755155440581,-215807.264228,0.00040512,4]
[379136919,1755155440590,-325134.701915,0.00040512,4]
[379136920,1755155440601,-156.45,0.00040513,2]
[379136921,1755155440611,-156.45,0.00040513,2]
[379136922,1755155440620,-5000.0,0.00040517,2]
[379136923,1755155440630,-271.39803735,0.00040519,31]
[379136924,1755155440642,-610.9416904,0.00040519,31]
[379136925,1755155440652,-150.0,0.00040521,3]
[379136926,1755155440661,-201.27594546,0.00040521,3]
[379136927,1755155440671,-2483146.89262948,0.00040522,2]
[379136928,1755155440684,-398459.9477323,0.00040522,2]
[379136929,1755155440693,-92943.86240676,0.00040522,2]
[379136930,1755155440704,-528901.06436112,0.00040522,30]
[379136931,1755155440727,-988.05227216,0.00040522,30]
[379136933,1755155440742,-170100.43975575,0.00040522,30]
[379136950,1755155442639,-841.71,0.00038355,2]
[379136952,1755155442650,-170.27491792,0.00040421,31]
[379136953,1755155442662,-503.00524865,0.00040421,7]
[379136955,1755155442675,-32234.36183341,0.00040522,30]
[379136979,1755155442884,-1327.31907534,0.00040522,30]
[379136984,1755155442928,-2521.84998724,0.00040522,30]
[379136990,1755155442975,-556139.65863346,0.00040522,30]
[379136992,1755155442987,-24702.4591357,0.00040522,30]
[379137012,1755155445978,-1634.5,0.00040522,30]
[379137013,1755155445989,-2382.5,0.00040522,30]
[379137014,1755155446000,-4947.7428,0.00040522,30]
[379137019,1755155455196,167.8,0.00033903,4]
[379137020,1755155455306,167.8,0.00028914,2]
[379137021,1755155455542,167.8,0.00023924,2]
[379137036,1755155486582,151.0,0.00033656,2]
[379137103,1755155499149,-167.8,0.00038893,7]
[379137105,1755155499160,-850.4,0.00040422,12]
[379137108,1755155499172,-896.95536938,0.00040422,12]
[379137178,1755155500052,487.49282139,0.000249,2]
[379137190,1755155500152,487.49282121,0.00027827,8]
[379137201,1755155500255,487.49282121,0.00030754,14]
[379137213,1755155500354,487.49282121,0.00033682,21]
[379137541,1755155503508,151.0,0.00034306,2]
[379138267,1755155513828,512.0,0.00032,2]
[379138271,1755155516942,250.0,0.00015,2]
[379138273,1755155518168,300.0,0.00017,2]
[379138274,1755155519622,151.0,0.0003454,2]
[379138289,1755155536637,151.0,0.00034506,2]
[379138297,1755155551730,170860.40559685,0.00035,2]
[379138298,1755155553485,151.0,0.00034884,2]
[379138299,1755155554395,16101.43182269,0.00033852,30]
[379138305,1755155572034,513.0,0.00032,2]
[379138306,1755155574537,542.81448154,0.00033,30]
[379138340,1755155681408,436.23694259,0.000249,2]
[379138341,1755155681498,436.23694241,0.00027827,8]
[379138342,1755155681605,436.23694241,0.00030754,14]
[379138343,1755155681705,436.23694241,0.00033682,21]
[379138365,1755155745015,523.0,0.00032,2]
[379138371,1755155757338,297.5,0.00034335,4]
[379138372,1755155757649,297.5,0.00029394,2]
[379138373,1755155757922,297.5,0.00024452,2]
[379138375,1755155761855,201.05123394,0.00035,2]
[379138400,1755155862566,378.07201691,0.000249,2]
[379138401,1755155862614,378.07201675,0.00027827,8]
[379138403,1755155862662,378.07201675,0.00030754,14]
[379138404,1755155862792,378.07201675,0.00033682,21]
[379138412,1755155878664,513.0,0.00032,2]
[379138423,1755155909755,1277.0,0.00035,3]
[379138462,1755156022564,214.93,0.00013699,2]
[379138463,1755156022774,214.93,0.00020187,2]
[379138464,1755156023004,214.93,0.00026676,2]
[379138465,1755156023443,214.93,0.00033165,2]
[379138478,1755156047687,327.66241471,0.000249,2]
[379138479,1755156047795,327.66241451,0.00027827,8]
[379138480,1755156047901,327.66241451,0.00030754,14]
[379138481,1755156047994,327.66241451,0.00033682,21]
[379138485,1755156055524,223.1,0.00034336,4]
[379138486,1755156055820,223.1,0.00029395,2]
[379138487,1755156056098,223.1,0.00024453,2]
[379138488,1755156060650,151.0,0.00035,2]
[379138492,1755156069642,5513.0,0.000349,5]
[379138521,1755156144771,151.0,0.00032975,2]
[379138523,1755156156125,-5000000.0,0.00040297,30]
[379138525,1755156161676,-5000000.0,0.00040297,30]
[379138526,1755156162225,276.66,0.00032949,2]
[379138527,1755156167113,-5000000.0,0.00040297,30]
[379138530,1755156170708,-5000000.0,0.00040297,30]
[379138538,1755156188592,514.0,0.00032,2]
[379138552,1755156233884,283.97409273,0.000249,2]
[379138553,1755156233991,283.97409257,0.00027827,8]
[379138554,1755156234096,283.97409257,0.00030754,14]
[379138555,1755156234176,283.97409257,0.00033682,21]
[379138571,1755156308575,565444.32580912,0.00019,2]
[379138578,1755156334108,1393.15357435,0.00018882,2]
[379138582,1755156347535,7972.03657756,0.0001995,15]
[379138585,1755156355084,167.3,0.00034298,4]
[379138586,1755156355391,167.3,0.00029353,2]
[379138587,1755156355693,167.3,0.00024407,2]
[379138589,1755156359741,151.0,0.00035,2]
[379138598,1755156407056,246.11088044,0.000249,2]
[379138599,1755156407154,246.11088022,0.00027827,8]
[379138600,1755156407274,246.11088022,0.00030754,14]
[379138601,1755156407383,246.11088022,0.00033682,21]
[379138605,1755156417770,5000.00904782,0.00024,5]
[379138609,1755156427263,513.0,0.00032,2]
[379138618,1755156462288,399.999999,0.0003121,2]
[379138620,1755156471100,3311.11333589,0.00013,2]
[379138622,1755156472893,3915.54600554,0.00018,2]
[379138623,1755156476609,176826.3460956,0.00019,2]
[379138624,1755156476637,53984.0,0.00019,2]
[379138625,1755156476664,69072.6738218,0.00019,2]
[379138683,1755156632056,-271.59269824,0.000205,2]
[379138684,1755156632068,-305.06701422,0.000205,2]
[379138685,1755156632112,-136.52795553,0.000205,2]
[379138686,1755156632123,-169.17028952,0.000249,2]
[379138729,1755156637902,-44.12580669,0.000249,2]
[379138730,1755156637912,-443.26703331,0.00027137,2]
[379138731,1755156637937,-70.73296669,0.00027137,2]
[379138732,1755156637947,-213.29609619,0.00027827,8]
[379138733,1755156637958,-536.38722333,0.00028,60]
[379138734,1755156637968,-213.29609619,0.00030754,14]
[379138735,1755156637978,-213.29609619,0.00033682,21]
[379138736,1755156637989,-209.48463526,0.00035823,120]
[379138737,1755156638006,-290.51536474,0.00035823,120]
[379138738,1755156638016,-162.0,0.00035823,2]
[379138739,1755156638027,-213.29609619,0.00036609,27]
[379138740,1755156638039,-1791.24991187,0.0003739,14]
[379138741,1755156638050,-151.0,0.00038,120]
[379138742,1755156638059,-587.51,0.00038346,2]
[379138743,1755156638068,-1200.0,0.00038354,5]
[379138744,1755156638077,-2921.17,0.00038355,2]
[379138745,1755156638087,-1079.69,0.00038355,2]
[379138746,1755156638096,-1427.3860272,0.00038356,51]
[379138747,1755156638146,-703.51136273,0.00038356,51]
[379138748,1755156638173,-897.67361007,0.00038356,51]
[379138749,1755156638183,-1000.0,0.00038473,2]
[379138750,1755156638192,-3009.88531421,0.00038481,2]
[379138751,1755156638203,-2797.88806825,0.00038481,2]
[379138752,1755156638235,-278.22661754,0.00038481,2]
[379138754,1755156638244,-1440.0,0.00038481,2]
[379138756,1755156638255,-810.0,0.00038481,2]
[379138757,1755156638264,-1280.0,0.00038481,2]
[379138758,1755156638274,-870.70927166,0.00038486,2]
[379138759,1755156638286,-1331.82072834,0.00038486,2]
[379138760,1755156638295,-160.64,0.00038504,2]
[379138761,1755156638305,-150.0,0.00038516,2]
[379138762,1755156638314,-339.94,0.00038529,2]
[379138763,1755156638324,-63.49762574,0.00038531,120]
[379138775,1755156639877,-345.57237426,0.00038531,120]
[379138776,1755156639889,-170.0,0.00038539,7]
[379138777,1755156639899,-152.33,0.00038539,2]
[379138778,1755156639909,-1345.01,0.00038578,2]
[379138779,1755156639920,-583.72,0.00038594,2]
[379138780,1755156639929,-666.0,0.00038609,3]
[379138781,1755156639938,-168.0,0.00038836,2]
[379138782,1755156639948,-2000.0,0.000389,2]
[379138783,1755156639958,-200.0,0.00038967,2]
[379138784,1755156639967,-200.0,0.00038967,2]
[379138785,1755156639977,-200.0,0.00038967,2]
[379138786,1755156639987,-200.0,0.00038967,2]
[379138787,1755156639996,-200.0,0.00038967,2]
[379138788,1755156640006,-200.0,0.00038967,2]
[379138789,1755156640016,-200.0,0.00038967,2]
[379138790,1755156640026,-200.0,0.00038967,2]
[379138791,1755156640036,-200.0,0.00038967,2]
[379138792,1755156640046,-200.0,0.00038967,2]
[379138793,1755156640057,-170.98424506,0.00038967,2]
[379138794,1755156640069,-40.56543375,0.00038967,2]
[379138795,1755156640079,-500.0,0.00038973,5]
[379138796,1755156640089,-500.0,0.00038973,5]
[379138797,1755156640099,-200.0,0.00038978,2]
[379138798,1755156640108,-307.39,0.00038984,2]
[379138799,1755156640119,-645.30795981,0.0003899,2]
[379138800,1755156640135,-3868.250001,0.0003899,2]
[379138801,1755156640159,-21691.30203919,0.0003899,2]
[379138802,1755156640168,-150.0,0.00038999,2]
[379138803,1755156640178,-150.0,0.00038999,2]
[379138804,1755156640188,-150.0,0.00038999,2]
[379138805,1755156640197,-150.0,0.00038999,2]
[379138806,1755156640207,-500.0,0.00038999,2]
[379138807,1755156640216,-150.0,0.00038999,2]
[379138808,1755156640226,-500.0,0.00038999,2]
[379138809,1755156640236,-514.0,0.00038999,2]
[379138810,1755156640245,-150.0,0.00038999,2]
[379138812,1755156640255,-680.0,0.00038999,2]
[379138814,1755156640264,-960.0,0.00038999,2]
[379138816,1755156640274,-1000.0,0.00039,9]
[379138818,1755156640283,-1000.0,0.00039,8]
[379138820,1755156640292,-1000.0,0.00039,7]
[379138822,1755156640302,-1000.0,0.00039,6]
[379138824,1755156640312,-1000.0,0.00039,6]
[379138826,1755156640321,-1000.0,0.00039,5]
[379138828,1755156640331,-1000.0,0.00039,5]
[379138830,1755156640341,-1095.0,0.00039,4]
[379138832,1755156640351,-1000.0,0.00039,4]
[379138834,1755156640360,-1000.0,0.00039,4]
[379138836,1755156640370,-1005.0,0.00039,4]
[379138838,1755156640380,-398.34,0.00039022,2]
[379138840,1755156640391,-31444.9,0.00039022,2]
[379138842,1755156640401,-250.0,0.00039044,2]
[379138844,1755156640410,-1142.44,0.00039078,120]
[379138846,1755156640420,-165.21,0.00039119,2]
[379138848,1755156640430,-558.0,0.00039197,2]
[379138851,1755156640441,-167.3,0.00039244,7]
[379138853,1755156640450,-151.62054213,0.00039273,2]
[379138855,1755156640459,-150.0,0.00039273,2]
[379138856,1755156640470,-150.0,0.00039273,2]
[379138858,1755156640479,-500.0,0.00039273,2]
[379138861,1755156640491,-514.0,0.00039273,2]
[379138862,1755156640501,-680.0,0.00039273,2]
[379138864,1755156640511,-960.0,0.00039273,2]
[379138867,1755156640522,-168.0,0.00039363,2]
[379138868,1755156640532,-300.0,0.00039405,120]
[379138871,1755156640542,-300.0,0.00039405,120]
[379138873,1755156640552,-150.0,0.00039497,2]
[379138875,1755156640565,-558.0,0.00039498,7]
[379138877,1755156640574,-13636.0,0.00039499,2]
[379138879,1755156640584,-339.27,0.00039517,2]
[379138881,1755156640594,-500.0,0.00039521,5]
[379138883,1755156640603,-507.66024781,0.00039521,5]
[379138885,1755156640614,-500.0,0.00039536,33]
[379138887,1755156640623,-500.0,0.00039536,33]
[379138889,1755156640633,-150.0,0.00039536,33]
[379138891,1755156640646,-500.0,0.00039536,33]
[379138893,1755156640657,-500.0,0.00039536,33]
[379138895,1755156640667,-150.0,0.00039536,33]
[379138897,1755156640676,-150.0,0.00039536,33]
[379138899,1755156640686,-500.0,0.00039536,33]
[379138901,1755156640695,-213.29609619,0.00039536,33]
[379138903,1755156640705,-339.27,0.00039538,2]
[379138905,1755156640715,-168.0,0.00039546,2]
[379138908,1755156640725,-150.0,0.00039547,2]
[379138910,1755156640736,-150.0,0.00039547,2]
[379138912,1755156640745,-485.71262262,0.00039547,2]
[379138914,1755156640755,-514.0,0.00039547,2]
[379138916,1755156640764,-680.0,0.00039547,2]
[379138918,1755156640773,-960.0,0.00039547,2]
[379138920,1755156640783,-339.27,0.00039558,2]
[379138921,1755156640792,-150.0,0.00039575,2]
[379138922,1755156640801,-183.7114574,0.00039579,2]
[379138923,1755156640870,-155.5585426,0.00039579,2]
[379138924,1755156640880,-252.69240822,0.00039587,2]
[379138925,1755156640892,-339.27,0.000396,2]
[379138926,1755156640902,-339.27,0.00039621,2]
[379138927,1755156640911,-942.0,0.00039621,2]
[379138928,1755156640922,-500.0,0.00039621,2]
[379138929,1755156640933,-500.0,0.00039621,2]
[379138930,1755156640942,-500.0,0.00039621,2]
[379138931,1755156640952,-500.0,0.00039621,2]
[379138932,1755156640963,-151.00081713,0.00039621,2]
[379138933,1755156640972,-500.0,0.00039621,2]
[379138934,1755156640981,-500.0,0.00039621,2]
[379138935,1755156640991,-150.0,0.00039621,2]
[379138936,1755156641001,-500.0,0.00039621,2]
[379138937,1755156641010,-150.0,0.00039621,2]
[379138938,1755156641020,-500.0,0.00039621,2]
[379138939,1755156641030,-500.0,0.00039621,2]
[379138940,1755156641040,-558.0,0.00039624,2]
[379138941,1755156641049,-160.0,0.00039638,2]
[379138942,1755156641058,-211.86673127,0.0003964,2]
[379138943,1755156641068,-339.27,0.00039642,2]
[379138944,1755156641078,-150.0,0.00039643,2]
[379138945,1755156641088,-214.93,0.00039654,2]
[379138946,1755156641098,-339.27,0.00039662,2]
[379138947,1755156641107,-172.58,0.00039666,120]
[379138948,1755156641117,-339.27,0.00039683,2]
[379138949,1755156641126,-339.27,0.00039704,2]
[379138950,1755156641136,-339.27,0.00039725,2]
[379138951,1755156641145,-339.27,0.00039746,2]
[379138952,1755156641155,-339.27,0.00039766,2]
[379138953,1755156641164,-339.27,0.00039787,2]
[379138954,1755156641180,-150.0,0.00039789,2]
[379138955,1755156641189,-339.27,0.00039808,2]
[379138956,1755156641199,-561.0,0.00039809,2]
[379138957,1755156641208,-500.0,0.0003981,33]
[379138958,1755156641218,-500.0,0.0003981,33]
[379138959,1755156641229,-150.0,0.0003981,33]
[379138960,1755156641238,-500.0,0.0003981,33]
[379138961,1755156641248,-500.0,0.0003981,33]
[379138962,1755156641258,-157.35261315,0.0003981,33]
[379138963,1755156641268,-150.0,0.0003981,33]
[379138964,1755156641278,-500.0,0.0003981,33]
[379138965,1755156641288,-150.0,0.00039818,2]
[379138966,1755156641297,-150.0,0.00039821,2]
[379138967,1755156641307,-150.0,0.00039821,2]
[379138968,1755156641320,-514.0,0.00039821,2]
[379138969,1755156641329,-680.0,0.00039821,2]
[379138970,1755156641339,-960.0,0.00039821,2]
[379138971,1755156641348,-850.4439466,0.00039822,2]
[379138972,1755156641358,-339.27,0.00039829,2]
[379138973,1755156641367,-300.0,0.00039831,2]
[379138974,1755156641377,-150.0,0.00039845,2]
[379138975,1755156641387,-150.0,0.00039846,2]
[379138976,1755156641397,-339.27,0.0003985,2]
[379138977,1755156641406,-158.61091172,0.00039857,2]
[379138978,1755156641434,-400.38908828,0.00039857,2]
[379138979,1755156641443,-150.0,0.00039858,2]
[379138980,1755156641452,-104.89387078,0.0003987,2]
[379138981,1755156641464,-234.37612922,0.0003987,2]
[379138982,1755156641473,-1026.13407213,0.0003989,2]
[379138983,1755156641485,-419.77238971,0.0003989,2]
[379138984,1755156641508,-1054.09353816,0.0003989,2]
[379138985,1755156641518,-339.27,0.00039891,2]
[379138986,1755156641528,-942.0,0.00039895,2]
[379138987,1755156641538,-500.0,0.00039895,2]
[379138988,1755156641548,-500.0,0.00039895,2]
[379138989,1755156641558,-500.0,0.00039895,2]
[379138990,1755156641573,-500.0,0.00039895,2]
[379138991,1755156641582,-500.0,0.00039895,2]
[379138992,1755156641592,-500.0,0.00039895,2]
[379138993,1755156641601,-150.0,0.00039895,2]
[379138994,1755156641612,-500.0,0.00039895,2]
[379138995,1755156641621,-150.0,0.00039895,2]
[379138996,1755156641631,-500.0,0.00039895,2]
[379138997,1755156641641,-500.0,0.00039895,2]
[379138998,1755156641652,-190.73137505,0.00039899,15]
[379138999,1755156641661,-165.4587092,0.000399,15]
[379139000,1755156641671,-339.27,0.00039912,2]
[379139001,1755156641681,-756.33705769,0.0003999,4]
[379139026,1755156643580,-1412.00135605,0.00038481,2]
[379139027,1755156643647,-623.53585689,0.00038481,2]
[379139028,1755156643662,-576.46414311,0.00038481,2]
[379139029,1755156643694,-1536.99864395,0.00038481,2]
[379139030,1755156643705,-23978.00135605,0.0003999,4]
[379139035,1755156643731,-22846.34967146,0.0003999,4]
[379139037,1755156643741,-500.0,0.00039999,31]
[379139038,1755156643751,-268.13960862,0.00039999,31]
[379139039,1755156643762,-240.062659,0.00039999,31]
[379139040,1755156643772,-252.2552303,0.00039999,31]
[379139041,1755156643782,-250.56008718,0.00039999,31]
[379139042,1755156643792,-334476.83037301,0.0004,120]
[379139043,1755156643805,-52712.13962699,0.0004,120]
[379139044,1755156643816,-5000.0,0.0004,120]
[379139045,1755156643826,-126546.26159676,0.0004,2]
[379139046,1755156643837,-399.999999,0.0004,30]
[379139047,1755156643846,-67195.74137972,0.0004,23]
[379139048,1755156643856,-150.0,0.00040011,2]
[379139049,1755156643867,-150.0,0.00040039,2]
[379139050,1755156643879,-150.0,0.00040046,2]
[379139051,1755156643892,-556.3075449,0.00040084,33]
[379139052,1755156643902,-500.0,0.00040084,33]
[379139053,1755156643912,-152.87030137,0.00040084,33]
[379139054,1755156643922,-500.0,0.00040084,33]
[379139055,1755156643931,-158.80999772,0.00040084,33]
[379139056,1755156643941,-150.0,0.00040084,33]
[379139057,1755156643951,-500.0,0.00040084,33]
[379139058,1755156643961,-150.0,0.00040095,2]
[379139059,1755156643971,-150.0,0.00040095,2]
[379139060,1755156643980,-514.0,0.00040095,2]
[379139061,1755156643990,-680.0,0.00040095,2]
[379139062,1755156643999,-960.0,0.00040095,2]
[379139063,1755156644009,-7930.11468086,0.0004011,4]
[379139064,1755156644019,-9657.19072034,0.0004012,2]
[379139065,1755156644031,-942.0,0.00040169,2]
[379139066,1755156644045,-500.0,0.00040169,2]
[379139067,1755156644055,-500.0,0.00040169,2]
[379139068,1755156644065,-500.0,0.00040169,2]
[379139069,1755156644075,-500.0,0.00040169,2]
[379139070,1755156644084,-500.0,0.00040169,2]
[379139071,1755156644094,-300.0,0.00040169,2]
[379139072,1755156644104,-200.0,0.00040169,2]
[379139073,1755156644113,-267.11791939,0.00040169,2]
[379139074,1755156644123,-458.21823086,0.00040169,2]
[379139075,1755156644133,-500.0,0.00040169,2]
[379139076,1755156644144,-7930.11468086,0.00040187,4]
[379139077,1755156644153,-150.0,0.00040191,2]
[379139078,1755156644164,-190.73137505,0.00040196,15]
[379139079,1755156644174,-9500.42671028,0.00040197,2]
[379139080,1755156644183,-150.0,0.00040216,2]
[379139081,1755156644194,-850.4439466,0.00040219,2]
[379139082,1755156644205,-31720.4587234,0.0004022,4]
[379139083,1755156644215,-7930.11468086,0.00040263,4]
[379139084,1755156644225,-4999.99,0.00040273,2]
[379139085,1755156644235,-583.0,0.00040274,120]
[379139086,1755156644246,-15860.2293617,0.00040277,4]
[379139087,1755156644255,-7930.11468086,0.0004028,4]
[379139088,1755156644265,-150672.178936,0.00040285,4]
[379139089,1755156644276,-2592.81292045,0.0004029,10]
[379139090,1755156644285,-4269.78209823,0.0004029,10]
[379139091,1755156644295,-186.72383365,0.0004029,10]
[379139092,1755156644305,-300.0,0.00040295,100]
[379139093,1755156644315,-2724.74245615,0.00040295,30]
[379139094,1755156644325,-190.75,0.00040295,2]
[379139095,1755156644335,-190.75,0.00040295,2]
[379139096,1755156644345,-46471.93120337,0.00040295,2]
[379139097,1755156644354,-1512029.01243487,0.00040295,2]
[379139098,1755156644364,-8638513.79912836,0.00040296,30]
[379139099,1755156644391,-379.97327152,0.00040296,30]
[379139108,1755156645995,-1626.3036075,0.00040296,30]
[379139109,1755156646007,-12193.60627048,0.00040296,30]
[379139110,1755156646019,-2409.4166236,0.00040296,30]
[379139212,1755156815974,180.73,0.00017814,2]
[379139322,1755156991235,178.33,0.00013699,2]
[379139392,1755157320313,250.0,0.00015,2]
[379139397,1755157567906,387.777015,7.945e-05,2]
[379139401,1755157758233,-178.33,0.00020187,2]
[379139402,1755157758256,-113.66967953,0.00021197,2]
[379139403,1755157776506,2000.0,0.00011472,3]
[379139404,1755157777426,1945.21,0.00011472,3]
[379139410,1755157832221,-136.33032047,0.00021197,2]
[379139411,1755157832231,-250.0,0.00022206,2]
[379139412,1755157832241,-250.0,0.00022206,2]
[379139413,1755157832252,-2.11978344,0.00024765,2]
[379139414,1755157832266,-153.18021656,0.00024765,2]
[379139415,1755157832276,-1044.61667084,0.000249,2]
[379139416,1755157832286,-527.0,0.00026438,2]
[379139417,1755157832295,-50.84359877,0.00026676,2]
[379139418,1755157832337,-127.48640123,0.00026676,2]
[379139419,1755157832347,-523.0,0.00027137,2]
[379139420,1755157832357,-1044.61667068,0.00027827,8]
[379139421,1755157832367,-155.3,0.00029678,2]
[379139422,1755157832377,-266.074545,0.00030754,14]
[379139423,1755157832388,-778.54212568,0.00030754,14]
[379139424,1755157832398,-210.99573606,0.00032,7]
[379139425,1755157832410,-49.85426394,0.00032,7]
[379139426,1755157832419,-773.92530119,0.000322,5]
[379139427,1755157832475,-0.89427513,0.000322,5]
[379139428,1755157832487,-812.9292,0.000322,5]
[379139520,1755157840097,-3925.0,0.000322,5]
[379139521,1755157840107,-1134.45475435,0.00032499,3]
[379139522,1755157840119,-65.54524565,0.00032499,3]
[379139523,1755157840128,-694.747066,0.00032877,30]
[379139524,1755157840232,-171.782934,0.00032877,30]
[379139525,1755157840242,-178.33,0.00033165,2]
[379139526,1755157840252,-211.86673127,0.00033461,2]
[379139527,1755157840262,-1217.82696978,0.000335,2]
[379139528,1755157840275,-6321.107015,0.000335,2]
[379139529,1755157840368,-271.42282622,0.000335,2]
[379139530,1755157840378,-103.95217378,0.00033682,21]
[379139531,1755157840390,-940.6644969,0.00033682,21]
[379139532,1755157840399,-167.37,0.00034272,2]
[379139533,1755157840409,-155.3,0.00034591,5]
[379139534,1755157840417,-247.30451788,0.00036239,2]
[379139535,1755157840427,-250.0,0.00036544,2]
[379139536,1755157840436,-1044.61667068,0.00036609,27]
[379139537,1755157840447,-271.95,0.00036941,2]
[379139538,1755157840457,-2915.89,0.00037067,2]
[379139539,1755157840467,-267.33,0.00037103,2]
[379139540,1755157840476,-250.93,0.00037126,120]
[379139541,1755157840486,-200.0,0.00037134,2]
[379139543,1755157840495,-200.0,0.00037217,2]
[379139545,1755157840505,-1000.0,0.00037322,2]
[379139547,1755157840514,-151.85,0.00037351,60]
[379139549,1755157840524,-303.0,0.000374,120]
[379139550,1755157840533,-151.85,0.00037451,60]
[379139551,1755157840543,-258.19,0.00037472,60]
[379139552,1755157840552,-154.99,0.00037501,60]
[379139553,1755157840562,-151.85,0.00037551,60]
[379139554,1755157840571,-150.0,0.00037599,2]
[379139555,1755157840581,-151.86,0.00037651,60]
[379139556,1755157840590,-162.18,0.00037944,2]
[379139557,1755157840600,-159.0,0.00038,120]
[379139559,1755157840609,-2422.857,0.00038,50]
[379139561,1755157840618,-57.18597834,0.00038,120]
[379139563,1755157840631,-93.81402166,0.00038,120]
[379139564,1755157840641,-605.0,0.00038,30]
[379139566,1755157840650,-159.0,0.00038,30]
[379139568,1755157840660,-170.0,0.00038003,7]
[379139570,1755157840669,-265.96,0.00038105,2]
[379139572,1755157840679,-514.94763564,0.00038273,5]
[379139574,1755157840688,-198.2037477,0.00038273,5]
[379139575,1755157840701,-301.7962523,0.00038273,5]
[379139576,1755157840711,-500.0,0.00038273,5]
[379139577,1755157840721,-1196.2037477,0.00038286,7]
[379139578,1755157840764,-18879.75319306,0.00038286,7]
[379139588,1755157843353,-1757.0,0.00035956,2]
[379139589,1755157843363,-4253.44118888,0.00038286,7]
[379139590,1755157843389,-3012.74074252,0.00038286,7]
[379139606,1755157846269,-514.0,0.00027137,2]
[379139607,1755157846280,-1992.0,0.00036135,2]
[379139608,1755157846290,-1589.0,0.00036314,2]
[379139609,1755157846301,-305.14689995,0.00036493,2]
[379139610,1755157846513,-1588.39306925,0.00036493,2]
[379139611,1755157846523,-17711.09112784,0.00038286,7]
[379139612,1755157846532,-374.98,0.00038303,120]
[379139613,1755157846542,-1000.0,0.00038356,120]
[379139614,1755157846552,-285.01654925,0.00038356,120]
[379139615,1755157846563,-500.0,0.00038367,5]
[379139616,1755157846572,-2000.0,0.000384,2]
[379139617,1755157846582,-844.53,0.00038517,2]
[379139618,1755157846592,-605.0,0.0003863,90]
[379139619,1755157846603,-165.95,0.00038635,2]
[379139620,1755157846614,-165.21,0.0003864,2]
[379139621,1755157846628,-6997.33153217,0.00038683,120]
[379139622,1755157846645,-271.95,0.00038788,2]
[379139623,1755157846655,-500.0,0.000389,14]
[379139624,1755157846665,-509.39230493,0.00038915,5]
[379139625,1755157846675,-1100.0,0.00039,14]
[379139626,1755157846685,-1700.0,0.000391,14]
[379139627,1755157846695,-1430.34,0.00039126,120]
[379139628,1755157846705,-2300.0,0.000392,14]
[379139629,1755157846715,-2900.0,0.000393,14]
[379139630,1755157846725,-162.18,0.00039367,2]
[379139631,1755157846736,-500.0,0.000394,14]